bitfinex/quotes_SOLUSD_20260113
["timestamp","ask_amount","ask_price","bid_price","bid_amount"]
[1768279980979,0.02788291,138.89,138.88,0.70163305]
[1768279984598,0.02788291,138.89,138.87,0.66135218]
[1768279984793,4.963761,138.88,138.85,2.12760738]
[1768279984984,4.963761,138.87,138.84,0.66135218]
[1768279985290,4.93376101,138.87,138.84,0.66135218]
[1768279985669,13.18788291,138.89,138.84,0.66135218]
[1768279985877,2.12760738,138.88,138.84,0.66135218]
[1768279986879,2.82154928,138.88,138.84,0.66135218]
[1768279987084,7.78531028,138.88,138.84,0.66135218]
[1768279987280,2.82154928,138.88,138.84,0.66135218]
[1768279987897,0.6939419,138.84,138.8,0.66135218]
[1768279988124,15.96154928,138.84,138.8,0.66135218]
[1768279988605,13.8339419,138.84,138.8,0.66135218]
[1768279988786,13.8339419,138.84,138.81,0.66135218]
[1768279989098,0.6939419,138.83,138.8,9.33215283]
[1768279989298,0.6939419,138.83,138.8,9.99350501]
[1768279989798,15.96154928,138.84,138.81,0.66135218]
[1768279990500,2.82154928,138.83,138.79,7.86631867]
[1768279990685,0.6939419,138.81,138.78,7.86682364]
[1768279991498,2.12760738,138.82,138.79,0.66135218]
[1768279991800,2.82154928,138.83,138.79,0.66135218]
[1768279992004,2.82154928,138.83,138.8,0.66135218]
[1768279993992,2.78199327,138.87,138.82,0.65767767]
[1768279994192,15.0,138.9,138.82,0.65767767]
[1768279994193,0.65438589,138.86,138.82,0.65767767]
[1768279994383,2.78199327,138.87,138.82,0.65767767]
[1768279995396,2.78199327,138.87,138.83,0.65767767]
[1768279996114,0.65438589,138.87,138.83,0.65767767]
[1768279997116,0.6822688,138.89,138.84,0.65767767]
[1768279997303,0.02788291,138.89,138.87,0.65767767]
[1768279997502,0.02788291,138.89,138.86,2.12760738]
[1768279997702,0.02788291,138.89,138.86,2.78528505]
[1768279998009,0.02788291,138.89,138.87,0.65767767]
[1768279998716,0.02788291,138.89,138.85,2.12760738]
[1768279999017,0.02788291,138.89,138.86,0.65767767]
[1768279999815,0.02788291,138.89,138.87,0.65767767]
[1768280001818,0.6822688,138.89,138.86,7.20098665]
[1768280002118,0.02788291,138.89,138.87,0.65767767]
[1768280004403,0.02788291,138.89,138.87,7.85830911]
[1768280006625,19.23818278,138.91,138.88,0.65767767]
[1768280006825,21.36579016,138.91,138.88,0.65767767]
[1768280007323,23.21337763,138.91,138.88,0.65767767]
[1768280007806,0.65438589,138.9,138.87,0.65767767]
[1768280008011,3.97519485,138.9,138.87,0.65767767]
[1768280008213,0.65438589,138.89,138.86,7.20142003]
[1768280008522,0.65438589,138.89,138.86,6.0113521]
[1768280008724,23.11337763,138.91,138.87,0.65767767]
[1768280008916,0.099,138.9,138.86,6.0113521]
[1768280009121,23.11337763,138.91,138.87,0.65767767]
[1768280009931,19.79256867,138.91,138.87,0.65767767]
[1768280010136,23.11337763,138.91,138.87,0.65767767]
[1768280010531,19.79256867,138.91,138.87,0.65767767]
[1768280010731,0.099,138.9,138.86,6.0113521]
[1768280010907,0.099,138.9,138.86,6.66902977]
[1768280011108,0.099,138.9,138.87,0.65767767]
[1768280013337,3.32080896,138.9,138.87,0.65767767]
[1768280013633,3.41980896,138.9,138.86,0.65767767]
[1768280014214,19.79256867,138.91,138.87,7.85862735]
[1768280014523,19.79256867,138.91,138.87,7.86794967]
[1768280015637,23.11337763,138.91,138.87,0.66699999]
[1768280017437,22.55899174,138.91,138.87,0.66699999]
[1768280018324,22.65799174,138.91,138.87,0.66699999]
[1768280019628,19.33718278,138.91,138.87,0.66699999]
[1768280020030,22.65799174,138.91,138.87,0.66699999]
[1768280023238,3.32080896,138.89,138.86,0.66699999]
[1768280023538,3.87519485,138.9,138.86,0.66699999]
[1768280024720,0.099,138.89,138.86,0.66699999]
[1768280024921,0.099,138.89,138.85,7.86895681]
[1768280025745,3.41980896,138.9,138.85,0.66699999]
[1768280025946,0.099,138.9,138.85,0.66699999]
[1768280026243,3.32080896,138.89,138.85,0.66699999]
[1768280026540,3.32080896,138.89,138.85,7.86889749]
[1768280026748,3.32080896,138.89,138.86,0.66699999]
[1768280028345,3.32080896,138.88,138.85,0.66699999]
[1768280029146,3.42431728,138.88,138.84,7.20247384]
[1768280029546,3.32080896,138.87,138.84,7.86947383]
[1768280030452,3.42431728,138.88,138.84,7.86947383]
[1768280030746,3.32080896,138.87,138.84,0.66699999]
[1768280031553,3.42431728,138.88,138.85,0.66699999]
[1768280033052,3.32080896,138.88,138.85,0.66699999]
[1768280035356,0.55438589,138.89,138.85,0.66699999]
[1768280035650,7.75396301,138.9,138.86,0.66699999]
[1768280035829,3.32080896,138.89,138.86,0.66699999]
[1768280036855,3.41980896,138.89,138.86,0.66699999]
[1768280038460,3.87064099,138.88,138.85,0.66699999]
[1768280038635,0.10350832,138.87,138.84,7.86953528]
[1768280039037,3.32080896,138.87,138.84,0.66699999]
[1768280040040,3.41980896,138.87,138.84,0.66699999]
[1768280040355,3.41980896,138.87,138.83,7.20288711]
[1768280040356,0.54983203,138.86,138.83,7.20288711]
[1768280040563,0.51983204,138.86,138.83,7.20288711]
[1768280041239,0.51983204,138.86,138.83,7.8698871]
[1768280041466,7.19958061,138.9,138.84,7.86924252]
[1768280041657,3.32080896,138.87,138.84,7.86924252]
[1768280043248,3.29080897,138.87,138.84,7.86924252]
[1768280043445,3.32080896,138.87,138.84,7.86924252]
[1768280044558,3.41980896,138.87,138.84,7.86924252]
[1768280045067,0.099,138.87,138.84,7.86924252]
[1768280047367,0.5243859,138.9,138.85,0.69333396]
[1768280047856,3.41980896,138.89,138.85,0.69333396]
[1768280048365,0.099,138.89,138.85,7.89506802]
[1768280048668,3.41980896,138.89,138.85,7.89506802]
[1768280049868,3.32080896,138.9,138.87,0.69333396]
[1768280050459,0.10321132,138.89,138.86,7.20139868]
[1768280050655,0.10321132,138.89,138.86,7.89473264]
[1768280052266,0.10321132,138.89,138.86,11.2155416]
[1768280053575,22.55899174,138.91,138.86,11.2155416]
[1768280053576,0.5243859,138.9,138.86,11.2155416]
[1768280054152,0.5243859,138.9,138.86,7.89473264]
[1768280055652,0.5243859,138.9,138.87,0.70694752]
[1768280056680,23.08337764,138.91,138.87,0.70694752]
[1768280058079,19.76256868,138.91,138.87,7.90783019]
[1768280058281,23.08337764,138.91,138.87,7.90783019]
[1768280068884,3.840941,138.89,138.86,0.70694752]
[1768280069284,2.64597941,138.89,138.86,0.70694752]
[1768280069589,19.23818278,138.91,138.88,0.70694752]
[1768280073375,19.23818278,138.91,138.89,0.70694752]
[1768280073580,19.23818278,138.91,138.89,0.60483776]
[1768280079588,17.06318278,138.91,138.89,7.19965856]
[1768280079790,16.96467844,138.91,138.89,7.19965856]
[1768280081593,16.96467844,138.91,138.87,25.20251077]
[1768280081890,16.96467844,138.91,138.88,2.12584737]
[1768280083683,16.96467844,138.91,138.89,7.1999424]
[1768280089305,0.69336929,138.9,138.88,7.2002704]
[1768280089685,16.96467844,138.91,138.88,7.2002704]
[1768280090405,17.65804773,138.91,138.88,7.2002704]
[1768280091609,16.96467844,138.91,138.88,9.32611777]
[1768280091789,16.96467844,138.91,138.88,27.32726984]
[1768280092183,1e-08,138.91,138.88,27.32726984]
[1768280092418,1e-08,138.91,138.89,2.12584737]
[1768280093091,1e-08,138.91,138.9,7.19942404]
[1768280098816,1e-08,138.91,138.88,25.20161289]
[1768280098994,1e-08,138.91,138.88,27.32746026]
[1768280100406,1e-08,138.92,138.89,2.12584737]
[1768280101316,1e-08,138.92,138.88,25.20161289]
[1768280101507,1e-08,138.92,138.89,2.12584737]
[1768280102406,0.6933693,138.92,138.89,2.12584737]
[1768280102915,1e-08,138.92,138.89,0.6904211]
[1768280103115,0.1,138.95,138.92,0.6904211]
[1768280103527,0.1,138.95,138.92,7.88848226]
[1768280104217,0.1,138.95,138.92,7.19806116]
[1768280104414,2.12584737,138.94,138.92,7.19806116]
[1768280104610,2.22584737,138.95,138.92,7.19806116]
[1768280104924,0.68873897,138.94,138.92,7.19806116]
[1768280108607,0.68873897,138.94,138.91,7.19890576]
[1768280114544,2.94362618,138.95,138.92,7.87103748]
[1768280114735,0.1,138.95,138.93,0.67299579]
[1768280115325,0.81777881,138.95,138.92,7.87103748]
[1768280115520,0.81777881,138.95,138.92,9.99688485]
[1768280116032,1e-08,138.96,138.95,0.67299579]
[1768280116640,1e-08,138.96,138.94,0.67299579]
[1768280116836,1e-08,138.96,138.94,7.870047]
[1768280117532,1e-08,138.96,138.95,0.67299579]
[1768280121931,1e-08,138.96,138.94,9.99589437]
[1768280122742,0.71777882,138.96,138.94,7.870047]
[1768280122934,0.68777883,138.96,138.94,7.870047]
[1768280123135,0.65777884,138.96,138.94,7.870047]
[1768280124348,0.62777885,138.96,138.94,7.870047]
[1768280125048,0.1,138.97,138.94,7.870047]
[1768280126344,0.81777881,138.97,138.94,7.870047]
[1768280130137,0.07000001,138.97,138.95,0.67299579]
[1768280131051,0.04000002,138.97,138.95,0.67299579]
[1768280131651,0.04000002,138.97,138.95,7.86979946]
[1768280132746,0.04000002,138.97,138.95,0.67299579]
[1768280134957,0.70790354,138.97,138.94,7.19716135]
[1768280135855,0.70790354,138.97,138.94,7.88481656]
[1768280136545,0.70790354,138.97,138.95,3.31737239]
[1768280136728,0.1,138.99,138.94,7.88481656]
[1768280136729,0.1,138.99,138.97,0.68765521]
[1768280136930,0.06507235,138.99,138.97,3.31737239]
[1768280137136,0.1,139.03,138.98,0.68765521]
[1768280137352,0.1,139.03,138.97,0.68765521]
[1768280137648,3.31737239,139.01,138.97,0.68765521]
[1768280137851,0.1,139.03,138.97,0.68765521]
[1768280138030,0.1,139.03,138.98,0.68765521]
[1768280138226,3.31737239,139.02,138.98,0.68765521]
[1768280138552,0.1,139.03,138.98,11.20002765]
[1768280138854,0.66790352,139.02,138.99,0.68765521]
[1768280139033,0.22583608,139.01,138.98,7.88265526]
[1768280139236,0.66790352,139.02,138.98,128.170855]
[1768280139556,0.22583608,139.01,138.98,110.18265526]
[1768280140451,3.31737239,139.02,138.98,110.18265526]
[1768280140638,3.98085524,139.01,138.98,0.68765521]
[1768280141356,0.66348285,139.01,138.98,7.88288258]
[1768280143049,0.23021255,138.98,138.95,7.19683339]
[1768280143354,3.54758494,138.98,138.95,7.19683339]
[1768280143556,0.23021255,138.98,138.95,7.8844886]
[1768280144453,3.54320847,139.0,138.96,0.68765521]
[1768280144663,0.22583608,139.0,138.96,0.68765521]
[1768280144961,3.31737239,138.99,138.96,0.68765521]
[1768280145361,3.31737239,138.99,138.96,7.88360747]
[1768280145655,0.66348285,138.99,138.96,7.88360747]
[1768280145859,3.98085524,138.99,138.96,7.88360747]
[1768280146560,3.98085524,138.99,138.95,25.87657208]
[1768280146930,0.66348285,138.99,138.95,25.87657208]
[1768280147136,3.98085524,138.99,138.95,29.19394447]
[1768280147560,3.98085524,138.99,138.97,7.19579765]
[1768280150459,7.29286911,139.03,138.97,7.19579765]
[1768280150660,3.31737239,138.99,138.97,7.19579765]
[1768280153576,3.98085524,138.99,138.96,7.88383254]
[1768280156561,0.1,139.03,138.99,0.68765521]
[1768280156762,0.1,139.03,139.0,4.0050276]
[1768280156969,0.1,139.03,139.0,0.68765521]
[1768280157474,0.1,139.03,139.01,7.19372706]
[1768280157970,0.1,139.03,139.0,7.8817609]
[1768280158985,0.199,139.03,139.0,7.8817609]
[1768280159664,3.51637239,139.03,139.0,7.19410569]
[1768280159859,3.44957494,139.02,138.99,7.1946038]
[1768280160975,0.09933202,139.01,138.99,7.1946038]
[1768280161270,3.44991032,139.02,138.99,7.1946038]
[1768280161460,0.13253793,139.02,138.99,7.1946038]
[1768280162061,3.44991032,139.02,138.99,7.1946038]
[1768280162269,0.1,139.03,139.0,0.68765521]
[1768280162570,0.099,139.02,138.99,10.51197619]
[1768280164455,0.099,139.02,138.99,11.1996314]
[1768280164773,3.54991032,139.03,138.99,11.1996314]
[1768280165293,0.23253793,139.03,138.99,11.1996314]
[1768280165575,0.1,139.03,139.0,7.8498683]
[1768280166975,0.1,139.03,139.01,7.84972008]
[1768280171471,0.1,139.03,139.02,0.65603305]
[1768280171671,0.04247081,139.03,139.02,0.65603305]
[1768280171975,3.31737239,139.04,139.02,0.65603305]
[1768280172176,0.13253793,139.06,139.02,0.65603305]
[1768280172387,3.37428713,139.05,139.02,0.65603305]
[1768280172555,3.41637239,139.05,139.02,0.65603305]
[1768280172758,0.099,139.05,139.02,0.65603305]
[1768280172991,3.41637239,139.05,139.02,0.65603305]
[1768280173286,0.099,139.05,139.01,0.65603305]
[1768280173455,3.41637239,139.05,139.01,7.84937343]
[1768280174674,0.13220255,139.04,139.01,7.19334038]
[1768280175263,0.13220255,139.04,139.01,7.91421996]
[1768280177386,0.099,139.07,139.02,0.72087958]
[1768280177570,3.44957494,139.06,139.02,4.03825197]
[1768280178888,3.44957494,139.06,139.02,7.91394229]
[1768280180668,3.31737239,139.05,139.02,0.72087958]
[1768280182285,0.13220255,139.06,139.02,0.72087958]
[1768280182590,3.31737239,139.05,139.02,7.91403697]
[1768280184292,3.31737239,139.05,139.02,0.72087958]
[1768280184491,0.13220255,139.06,139.02,0.72087958]
[1768280184673,3.31737239,139.05,139.02,0.72087958]
[1768280186893,0.13220255,139.06,139.02,7.91398057]
[1768280187099,3.31737239,139.05,139.02,7.91398057]
[1768280187673,3.44957494,139.06,139.02,7.91398057]
[1768280187902,0.13220255,139.06,139.03,0.72087958]
[1768280188200,3.44957494,139.06,139.03,0.72087958]
[1768280188400,3.31737239,139.06,139.03,0.72087958]
[1768280188705,3.44991032,139.08,139.05,0.72087958]
[1768280188899,3.44991032,139.08,139.05,0.63270792]
[1768280188900,3.40783111,139.08,139.05,0.63270792]
[1768280189280,0.1,139.09,139.04,3.31737239]
[1768280189281,0.1,139.09,139.07,2.84007056]
[1768280189485,0.1,139.09,139.07,0.72087958]
[1768280189787,0.1,139.09,139.07,7.91140484]
[1768280191010,0.198,139.12,139.08,0.72087958]
[1768280191304,2.11919098,139.11,139.08,0.72087958]
[1768280191603,0.198,139.12,139.08,0.72087958]
[1768280191793,2.11919098,139.11,139.08,0.72087958]
[1768280192192,2.29801505,139.11,139.08,0.72087958]
[1768280192385,2.29801505,139.11,139.07,7.91140484]
[1768280192594,2.11919098,139.11,139.08,0.72087958]
[1768280193887,0.27863038,139.12,139.08,0.72087958]
[1768280194086,2.11919098,139.11,139.08,0.72087958]
[1768280195312,2.11919098,139.09,139.06,0.66750891]
[1768280195520,2.11919098,139.09,139.04,2.11919098]
[1768280195521,0.27683407,139.1,139.05,7.19127122]
[1768280195808,2.11919098,139.08,139.05,7.19127122]
[1768280195984,0.27683407,139.1,139.05,7.19127122]
[1768280196184,2.8262819,139.09,139.05,7.19127122]
[1768280197226,2.11919098,139.08,139.05,7.19127122]
[1768280197393,2.11919098,139.08,139.05,0.66750891]
[1768280197394,2.11919098,139.07,139.05,0.66750891]
[1768280198013,2.45484886,139.08,139.05,0.66750891]
[1768280198609,2.11919098,139.08,139.05,0.66750891]
[1768280199117,2.11919098,139.08,139.05,7.85911074]
[1768280199506,0.70709092,139.09,139.05,7.85911074]
[1768280199810,2.11919098,139.08,139.05,7.85911074]
[1768280200523,2.45484886,139.08,139.05,7.85911074]
[1768280200813,2.45484886,139.08,139.05,0.66750891]
[1768280201722,2.82256757,139.07,139.04,0.66750891]
[1768280203638,0.70709092,139.09,139.05,0.66750891]
[1768280203921,2.45484886,139.08,139.05,0.66750891]
[1768280204134,2.82256757,139.07,139.04,0.66750891]
[1768280207233,0.33933507,139.06,139.03,9.97926152]
[1768280207826,2.11919098,139.07,139.04,0.66750891]
[1768280208030,0.33565788,139.07,139.04,0.66750891]
[1768280209132,0.33565788,139.07,139.03,9.97926152]
[1768280209626,0.33565788,139.07,139.04,0.66750891]
[1768280212533,0.33565788,139.07,139.04,7.85957511]
[1768280212742,0.33565788,139.07,139.04,9.97876609]
[1768280213417,2.8262819,139.08,139.04,9.97876609]
[1768280213942,2.8262819,139.08,139.05,7.8590181]
[1768280215236,2.8262819,139.08,139.03,20.10071802]
[1768280215237,2.45484886,139.07,139.04,7.19208241]
[1768280215415,2.45484886,139.07,139.04,7.85959132]
[1768280216023,2.45484886,139.07,139.04,0.66750891]
[1768280217336,2.82256757,139.09,139.05,7.85916658]
[1768280217535,2.82256757,139.09,139.06,0.66750891]
[1768280217733,0.70337659,139.09,139.06,0.66750891]
[1768280217923,2.82256757,139.09,139.06,0.66750891]
[1768280218439,2.82256757,139.09,139.06,7.85841444]
[1768280219026,2.7805042,139.09,139.06,7.85841444]
[1768280220122,39.62376537,139.13,139.07,0.66750891]
[1768280220433,2.11919098,139.11,139.07,0.66750891]
[1768280220639,2.11919098,139.11,139.08,0.66750891]
[1768280221237,2.41320613,139.11,139.08,0.66750891]
[1768280222015,0.29401515,139.11,139.08,0.66750891]
[1768280222219,2.41320613,139.11,139.08,0.66750891]
[1768280223337,0.29401515,139.11,139.08,0.66750891]
[1768280223542,2.11919098,139.1,139.08,0.66750891]
[1768280223839,2.82215114,139.1,139.07,7.85789879]
[1768280224025,2.78009685,139.1,139.07,7.81583542]
[1768280225252,0.70296016,139.1,139.07,7.81583542]
[1768280226245,2.11919098,139.11,139.08,0.66833573]
[1768280226452,2.42338868,139.11,139.08,7.85840715]
[1768280226948,2.42338868,139.11,139.08,0.66833573]
[1768280227349,2.11919098,139.1,139.08,0.66833573]
[1768280231652,2.11919098,139.09,139.06,7.85937482]
[1768280231847,2.81207041,139.1,139.07,7.85862754]
[1768280232042,2.81207041,139.1,139.07,7.75657325]
[1768280232246,2.11919098,139.1,139.07,7.19029181]
[1768280232552,0.69680551,139.11,139.07,7.19029181]
[1768280232743,2.11919098,139.1,139.07,7.19029181]
[1768280233954,2.11919098,139.1,139.07,7.89121407]
[1768280234148,2.52442243,139.1,139.07,7.89121407]
[1768280235135,40.29225985,139.13,139.08,0.70092226]
[1768280235350,2.11919098,139.11,139.08,0.70092226]
[1768280235840,2.78514563,139.11,139.08,0.70092226]
[1768280237060,0.66595465,139.11,139.08,7.83080346]
[1768280237238,2.78514563,139.11,139.08,7.83080346]
[1768280237438,2.74310202,139.11,139.08,7.83080346]
[1768280237639,0.62391104,139.11,139.08,7.83080346]
[1768280237854,2.74310202,139.11,139.08,7.83080346]
[1768280238947,0.62391104,139.11,139.08,7.83080346]
[1768280239144,2.74310202,139.11,139.08,7.83080346]
[1768280240450,2.61436478,139.1,139.07,7.89154568]
[1768280243048,0.4951738,139.1,139.07,7.89154568]
[1768280244469,2.78749417,139.11,139.08,0.64092226]
[1768280244651,2.11919098,139.11,139.08,7.19003061]
[1768280244855,2.78591739,139.11,139.08,7.19003061]
[1768280245771,2.78591739,139.11,139.06,25.16820888]
[1768280245950,2.78591739,139.11,139.06,27.28739986]
[1768280246446,2.78591739,139.11,139.07,0.70092226]
[1768280246864,2.78591739,139.11,139.07,7.89103587]
[1768280247071,2.78591739,139.11,139.08,0.70092226]
[1768280249266,0.66672641,139.11,139.08,0.70092226]
[1768280249472,2.78591739,139.11,139.08,0.70092226]
[1768280250454,2.11919098,139.11,139.09,0.70092226]
[1768280250654,2.11919098,139.11,139.09,0.53889304]
[1768280251359,3.31123787,139.11,139.09,0.53889304]
[1768280251570,3.97954106,139.11,139.09,0.53889304]
[1768280253685,0.66830319,139.11,139.09,0.53889304]
[1768280253869,3.97954106,139.11,139.09,0.53889304]
[1768280254189,3.31123787,139.11,139.09,7.72845036]
[1768280257074,3.97954106,139.12,139.09,7.72845036]
[1768280257579,3.97954106,139.12,139.09,7.62642994]
[1768280258254,3.31123787,139.11,139.09,7.62642994]
[1768280263782,0.66830319,139.12,139.09,7.62642994]
[1768280263965,3.31123787,139.11,139.09,7.62642994]
[1768280264487,0.10309924,139.1,139.08,7.19010641]
[1768280264784,0.10309924,139.1,139.08,7.13010641]
[1768280264988,0.10309924,139.1,139.08,7.84838026]
[1768280264989,0.06110387,139.1,139.08,7.84838026]
[1768280265192,3.31123787,139.11,139.08,7.84838026]
[1768280267287,0.6756924,139.11,139.08,7.84838026]
[1768280267796,3.98693027,139.12,139.09,7.90771804]
[1768280269094,3.98693027,139.12,139.1,0.71827385]
[1768280269786,0.6756924,139.1,139.07,0.71827385]
[1768280269992,3.98693027,139.1,139.07,7.90888543]
[1768280270889,0.6756924,139.09,139.07,7.19061158]
[1768280271080,3.98693027,139.1,139.07,7.90888543]
[1768280271395,3.31123787,139.09,139.07,7.90888543]
[1768280271898,3.98693027,139.09,139.07,7.19061158]
[1768280272684,3.31123787,139.09,139.07,0.71827385]
[1768280274705,3.31123787,139.09,139.07,7.90888839]
[1768280277214,19.31606733,139.13,139.08,0.71827385]
[1768280277215,19.99175973,139.13,139.08,0.71827385]
[1768280277392,23.3029976,139.13,139.08,0.71827385]
[1768280278006,19.99175973,139.13,139.09,0.71827385]
[1768280279203,19.99175973,139.13,139.1,7.1890726]
[1768280280309,19.99175973,139.13,139.1,0.71827385]
[1768280280919,23.3029976,139.13,139.1,0.71827385]
[1768280281511,23.3029976,139.13,139.1,7.9072468]
[1768280282814,19.99175973,139.13,139.1,7.9072468]
[1768280283486,0.6756924,139.12,139.09,7.18958947]
[1768280283707,19.31606733,139.13,139.1,0.71827385]
[1768280284710,0.69631785,139.12,139.09,7.84861565]
[1768280287991,23.32362305,139.13,139.1,7.84804769]
[1768280289118,23.32362305,139.13,139.08,106.33024851]
[1768280289119,0.69631785,139.12,139.09,7.84861565]
[1768280292903,0.69631785,139.12,139.09,7.18958947]
[1768280293204,0.69631785,139.12,139.09,7.84861565]
[1768280299321,22.6273052,139.13,139.1,0.68439193]
[1768280299519,23.28812088,139.13,139.1,0.58239259]
[1768280299691,23.24613197,139.13,139.1,0.58239259]
[1768280299891,19.9348941,139.13,139.1,0.58239259]
[1768280300105,23.24613197,139.13,139.1,0.58239259]
[1768280301625,23.24613197,139.13,139.09,7.8739814]
[1768280301626,0.66081568,139.12,139.09,7.8739814]
[1768280309639,0.66081568,139.11,139.08,7.87449834]
[1768280311338,3.97205355,139.11,139.08,7.87449834]
[1768280312338,0.66081568,139.11,139.08,7.87449834]
[1768280316044,2.77981613,139.11,139.08,7.87449834]
[1768280319350,0.66081568,139.11,139.08,7.87449834]
[1768280319529,0.66081568,139.11,139.09,0.65553366]
[1768280321745,0.66081568,139.11,139.09,7.8446316]
[1768280323552,0.67339429,139.12,139.09,7.8446316]
[1768280328044,0.67339429,139.12,139.09,7.18909794]
[1768280330158,0.67339429,139.12,139.09,7.8446316]
[1768280334437,21.39307887,139.13,139.09,7.8446316]
[1768280334438,19.94747271,139.13,139.1,0.65553366]
[1768280334636,2.11900045,139.12,139.1,0.65553366]
[1768280335154,0.67339429,139.12,139.09,7.8446316]
[1768280338141,0.67339429,139.12,139.08,7.84546734]
[1768280338639,0.67339429,139.12,139.09,7.18957018]
[1768280343040,0.67339429,139.12,139.09,7.84510384]
[1768280351078,0.67339429,139.12,139.09,9.96410429]
[1768280351261,0.67339429,139.12,139.09,7.84510384]
[1768280357103,2.79239474,139.12,139.09,7.84510384]
[1768280357393,0.67339429,139.12,139.09,7.84510384]
[1768280358485,21.39307887,139.13,139.1,0.65304644]
[1768280358486,22.08578643,139.13,139.1,0.65304644]
[1768280358999,0.69270756,139.12,139.1,7.18883622]
[1768280376905,0.67087609,139.11,139.09,7.18940625]
[1768280394728,0.67087609,139.11,139.08,25.16446364]
[1768280395032,0.67087609,139.11,139.08,25.85493823]
[1768280400240,0.67087609,139.11,139.08,25.16446364]
[1768280400818,0.67087609,139.11,139.08,25.85493823]
[1768280401855,19.27407842,139.13,139.09,0.69047459]
[1768280402041,22.58432477,139.13,139.09,0.69047459]
[1768280402955,22.58432477,139.13,139.1,7.1890726]
[1768280403254,22.58432477,139.13,139.1,7.87954719]
[1768280403856,0.67087609,139.12,139.1,7.87954719]
[1768280404556,0.67087609,139.12,139.09,7.84309119]
[1768280404853,3.53700519,139.1,139.08,0.65350172]
[1768280405060,0.66233869,139.1,139.07,0.65350172]
[1768280405248,0.66233869,139.09,139.04,17.98007227]
[1768280405447,3.97258504,139.1,139.05,3.31024635]
[1768280405654,0.66233869,139.1,139.06,3.31024635]
[1768280405850,0.66233869,139.1,139.05,3.31024635]
[1768280406257,0.66233869,139.1,139.03,13.12]
[1768280406258,0.66233869,139.12,139.08,7.19010641]
[1768280406552,0.66233869,139.12,139.08,10.50035276]
[1768280406737,19.93641711,139.13,139.08,10.50035276]
[1768280406940,0.66233869,139.12,139.08,28.47561879]
[1768280407150,0.66233869,139.12,139.09,0.65350172]
[1768280407541,0.66233869,139.1,139.08,7.19010641]
[1768280408249,3.31024635,139.11,139.08,7.19010641]
[1768280408455,19.27407842,139.13,139.09,0.65350172]
[1768280408753,3.31024635,139.12,139.09,0.65350172]
[1768280408961,3.31024635,139.11,139.09,0.65350172]
[1768280409139,3.31024635,139.11,139.08,7.84360813]
[1768280410266,3.97258504,139.11,139.08,7.84360813]
[1768280413942,0.66233869,139.11,139.08,7.84360813]
[1768280414137,3.97258504,139.11,139.08,7.84360813]
[1768280414462,0.67557802,139.1,139.08,7.84360813]
[1768280414664,0.67557802,139.1,139.06,21.2878709]
[1768280414665,0.64557804,139.1,139.07,7.855345]
[1768280415569,1e-08,139.1,139.08,0.66472158]
[1768280416471,3.31024635,139.11,139.08,7.85457662]
[1768280417470,3.98582437,139.11,139.08,7.85457662]
[1768280423063,0.61558088,139.11,139.08,7.85457662]
[1768280423362,0.61558088,139.11,139.08,7.82457947]
[1768280424074,0.55558374,139.11,139.08,7.82457947]
[1768280424664,3.86583009,139.11,139.08,7.82457947]
[1768280424861,3.31024635,139.11,139.08,7.82457947]
[1768280425660,3.31024635,139.11,139.07,7.85526104]
[1768280426059,3.31024635,139.1,139.07,7.85526104]
[1768280426260,3.98582437,139.1,139.07,7.85526104]
[1768280426457,0.67557802,139.1,139.07,7.85526104]
[1768280427376,0.67557802,139.1,139.08,0.66472158]
[1768280427580,3.98582437,139.11,139.08,0.66472158]
[1768280428580,0.67557802,139.11,139.08,0.66472158]
[1768280428749,3.98582437,139.11,139.08,0.66472158]
[1768280429177,0.67557802,139.11,139.08,0.66472158]
[1768280429376,3.98582437,139.11,139.08,0.66472158]
[1768280430672,0.67557802,139.11,139.08,0.66472158]
[1768280430860,3.92582439,139.11,139.08,0.66472158]
[1768280431979,0.61557804,139.11,139.08,0.66472158]
[1768280432183,3.92582439,139.11,139.08,0.66472158]
[1768280434681,0.61557804,139.11,139.08,0.66472158]
[1768280434859,3.92582439,139.11,139.08,0.66472158]
[1768280435479,2.7347372,139.11,139.08,0.66472158]
[1768280435883,0.61557804,139.11,139.08,7.85466543]
[1768280436886,0.62785203,139.12,139.09,2.8165916]
[1768280437383,0.62785203,139.12,139.09,0.69743244]
[1768280437566,0.5678576,139.12,139.09,0.69743244]
[1768280437888,19.27407842,139.13,139.09,0.667438]
[1768280438077,21.39323758,139.13,139.09,0.667438]
[1768280438277,21.99108962,139.13,139.09,0.667438]
[1768280438859,21.99108962,139.13,139.09,7.85679662]
[1768280439484,21.99108962,139.13,139.09,7.18935862]
[1768280439682,2.21815916,139.12,139.09,7.18935862]
[1768280439984,0.099,139.12,139.09,7.88679106]
[1768280440478,2.21815916,139.12,139.09,7.88679106]
[1768280441482,0.099,139.12,139.09,7.88679106]
[1768280442187,0.099,139.12,139.09,0.69743244]
[1768280442898,19.87193046,139.13,139.1,0.69743244]
[1768280443570,0.10393864,139.1,139.07,0.69743244]
[1768280443768,2.2230978,139.1,139.07,7.88798945]
[1768280444087,0.59785204,139.11,139.08,7.88752002]